bitfinex/quotes_SOLUSD_20251106
["timestamp","ask_amount","ask_price","bid_price","bid_amount"]
[1762441663590,9.78882769,158.18,158.09,0.66]
[1762441663801,6.86456849,158.17,158.11,6.86456849]
[1762441663991,22.12948911,158.16,158.11,6.86456849]
[1762441664290,6.32242039,158.17,158.13,6.86456849]
[1762441664505,6.98220231,158.18,158.13,6.86456849]
[1762441664700,6.32193574,158.18,158.14,6.86456849]
[1762441664877,0.66,158.17,158.13,6.86456849]
[1762441665074,7.52456849,158.17,158.1,20.592]
[1762441665273,0.66,158.17,158.13,6.86456849]
[1762441665474,20.592,158.19,158.14,6.86456849]
[1762441665703,7.52456849,158.18,158.11,0.66]
[1762441665903,0.66,158.18,158.13,6.86456849]
[1762441666077,6.32231143,158.17,158.1,20.592]
[1762441666281,6.86456849,158.14,158.08,6.86456849]
[1762441666607,6.86456849,158.15,158.09,6.86456849]
[1762441666914,7.52456849,158.16,158.1,6.86456849]
[1762441667608,0.66,158.16,158.11,6.86456849]
[1762441667794,7.52456849,158.16,158.1,6.86456849]
[1762441667984,0.66,158.16,158.11,6.86456849]
[1762441668409,22.13088839,158.15,158.11,6.86456849]
[1762441668908,0.66,158.14,158.09,6.86456849]
[1762441669106,0.66,158.14,158.1,6.86456849]
[1762441669410,6.32311097,158.15,158.1,6.86456849]
[1762441669705,0.66,158.14,158.1,6.86456849]
[1762441670118,22.13088839,158.15,158.11,6.86456849]
[1762441670288,0.66,158.14,158.07,0.2]
[1762441670486,6.3239107,158.13,158.09,6.86456849]
[1762441671093,6.3239107,158.13,158.08,6.86456849]
[1762441671393,22.79368746,158.13,158.08,6.86456849]
[1762441671607,22.79368746,158.13,158.09,6.86456849]
[1762441671920,6.9839107,158.13,158.09,6.86456849]
[1762441672116,7.52456849,158.16,158.1,6.86456849]
[1762441672414,6.32351081,158.14,158.1,6.86456849]
[1762441673092,22.84228784,158.14,158.09,6.86456849]
[1762441673296,22.84228784,158.14,158.1,6.86456849]
[1762441673297,7.03351081,158.14,158.1,6.86456849]
[1762441673502,7.03351081,158.14,158.09,6.86456849]
[1762441673908,0.71,158.13,158.09,6.86456849]
[1762441674412,6.32431065,158.12,158.09,6.86456849]
[1762441674630,20.592,158.16,158.07,0.2]
[1762441674787,28.16656849,158.16,158.1,6.86456849]
[1762441674997,22.84088839,158.15,158.1,6.86456849]
[1762441675303,0.71,158.14,158.11,6.86456849]
[1762441675498,0.71,158.14,158.07,0.9]
[1762441675499,0.71,158.14,158.1,6.86456849]
[1762441675689,0.71,158.14,158.07,0.9]
[1762441675891,7.57456849,158.14,158.08,6.86456849]
[1762441676219,6.86456849,158.13,158.07,7.06456849]
[1762441676396,0.71,158.13,158.08,6.86456849]
[1762441676591,6.32431065,158.12,158.08,6.86456849]
[1762441676797,7.03398808,158.13,158.08,6.86456849]
[1762441676998,7.03398808,158.13,158.09,6.86456849]
[1762441677207,22.84376484,158.13,158.08,6.86456849]
[1762441677406,29.70833333,158.13,158.08,6.86456849]
[1762441677615,29.70833333,158.13,158.07,0.2]
[1762441677616,0.71,158.12,158.07,0.2]
[1762441677925,0.71,158.12,158.08,6.86456849]
[1762441678096,0.71,158.12,158.09,6.86456849]
[1762441678299,6.32398808,158.13,158.09,6.86456849]
[1762441678618,22.13228784,158.14,158.09,6.86456849]
[1762441678815,6.86456849,158.13,158.07,0.2]
[1762441679007,6.86456849,158.11,158.07,0.2]
[1762441679513,6.86456849,158.11,158.07,7.06456849]
[1762441679514,0.71,158.11,158.07,7.06456849]
[1762441680320,7.57456849,158.11,158.07,0.2]
[1762441680492,22.1378874,158.1,158.07,0.2]
[1762441680693,29.71245589,158.1,158.07,0.2]
[1762441680915,29.71245589,158.1,158.04,0.2]
[1762441680916,9.78882769,158.07,158.04,0.2]
[1762441681215,0.71,158.09,158.04,0.2]
[1762441681417,6.86456849,158.05,158.04,0.2]
[1762441681832,7.57456849,158.05,158.04,0.2]
[1762441682039,6.86456849,158.06,158.04,0.2]
[1762441682207,7.57456849,158.05,157.99,0.2]
[1762441682408,7.57456849,158.05,157.99,7.06456849]
[1762441682615,29.72086056,158.04,157.99,7.06456849]
[1762441683128,0.71,158.03,157.99,7.06456849]
[1762441683330,6.86456849,158.06,158.0,7.56456849]
[1762441683521,6.86456849,158.04,157.99,0.2]
[1762441683722,20.592,158.06,158.02,6.86456849]
[1762441683915,43.44307634,158.08,158.03,6.86456849]
[1762441684116,6.86456849,158.05,157.99,0.2]
[1762441684414,6.86456849,158.04,157.99,7.06456849]
[1762441684718,6.86456849,158.06,158.0,6.86456849]
[1762441684919,22.8538529,158.06,158.02,6.86456849]
[1762441685128,0.79063883,158.1,158.05,6.86456849]
[1762441685129,0.71,158.1,158.05,6.86456849]
[1762441685506,22.13970153,158.09,158.04,6.86456849]
[1762441685707,6.32551078,158.09,158.05,6.86456849]
[1762441685908,6.32551078,158.09,158.03,0.7]
[1762441686221,20.592,158.06,158.01,6.86456849]
[1762441686426,27.45656849,158.06,158.0,6.86456849]
[1762441686626,8.75058883,158.11,158.04,6.86456849]
[1762441686812,0.14216157,158.13,158.09,6.86456849]
[1762441686813,16.51995239,158.13,158.09,6.86456849]
[1762441687131,22.13518136,158.12,158.07,6.86456849]
[1762441687315,29.70974985,158.12,158.07,6.86456849]
[1762441687517,8.67,158.14,158.09,6.86456849]
[1762441687712,8.67,158.14,158.04,0.14216157]
[1762441687713,6.32311097,158.15,158.1,6.86456849]
[1762441687916,16.65339618,158.13,158.08,6.86456849]
[1762441688134,6.86456849,158.12,158.07,6.86456849]
[1762441688316,7.57456849,158.13,158.07,6.86456849]
[1762441688522,22.13508727,158.12,158.07,6.86456849]
[1762441688733,6.86456849,158.1,158.05,6.86456849]
[1762441689029,21.302,158.09,158.02,6.86456849]
[1762441689238,20.592,158.09,158.05,6.86456849]
[1762441689440,20.592,158.11,158.06,0.7]
[1762441689742,29.70965576,158.12,158.09,6.86456849]
[1762441689743,6.32431065,158.12,158.09,6.86456849]
[1762441689945,6.32431065,158.12,158.06,0.7]
[1762441690114,6.32431065,158.12,158.1,6.86456849]
[1762441690431,7.03431065,158.12,158.09,6.86456849]
[1762441690818,22.84508727,158.12,158.08,6.86456849]
[1762441691141,6.32431065,158.12,158.06,0.7]
[1762441691337,7.57456849,158.11,158.03,0.14216157]
[1762441691540,42.72708727,158.12,158.1,6.86456849]
[1762441691541,6.32431065,158.12,158.1,6.86456849]
[1762441691721,6.32431065,158.12,158.11,6.86456849]
[1762441692046,0.71,158.17,158.11,6.86456849]
[1762441692220,6.3215121,158.19,158.14,6.86456849]
[1762441692415,13.18608059,158.19,158.13,6.86456849]
[1762441692719,7.96,158.21,158.13,6.86456849]
[1762441692720,29.70137942,158.18,158.13,6.86456849]
[1762441692914,7.03191174,158.18,158.13,6.86456849]
[1762441693118,7.03191174,158.18,158.14,6.86456849]
[1762441693332,0.71,158.23,158.17,6.86456849]
[1762441693531,7.96,158.24,158.19,6.86456849]
[1762441693840,0.1,158.3,158.23,6.86456849]
[1762441694150,22.21030398,158.3,158.25,6.86456849]
[1762441694440,22.21030398,158.3,158.22,0.7]
[1762441694441,22.92030398,158.3,158.22,0.7]
[1762441694616,22.92030398,158.3,158.25,6.86456849]
[1762441694826,22.92030398,158.3,158.26,6.86456849]
[1762441695040,22.92030398,158.3,158.25,6.86456849]
[1762441695527,0.71,158.29,158.25,6.86456849]
[1762441695918,6.86456849,158.27,158.21,6.86456849]
[1762441696344,7.57456849,158.27,158.21,6.86456849]
[1762441696545,53.79590094,158.3,158.21,6.86456849]
[1762441696546,22.92030398,158.3,158.24,6.86456849]
[1762441696746,6.4175055,158.3,158.22,0.7]
[1762441696954,22.92030398,158.3,158.25,6.86456849]
[1762441697149,29.78487247,158.3,158.25,6.86456849]
[1762441697770,0.1,158.3,158.26,6.86456849]
[1762441697958,0.1,158.3,158.27,6.86456849]
[1762441698142,6.41720222,158.3,158.28,6.86456849]
[1762441698343,6.41720222,158.3,158.27,6.86456849]
[1762441698639,22.2100007,158.3,158.26,6.86456849]
[1762441698966,6.41720222,158.3,158.27,6.86456849]
[1762441699342,0.71,158.29,158.21,20.73416157]
[1762441699546,0.71,158.29,158.24,6.86456849]
[1762441699746,22.2100007,158.3,158.26,6.86456849]
[1762441699948,0.71,158.29,158.25,6.86456849]
[1762441700153,0.71,158.29,158.24,6.86456849]
[1762441700366,0.71,158.29,158.25,6.86456849]
[1762441700561,6.86456849,158.28,158.2,21.43416157]
[1762441700871,28.97867729,158.27,158.21,6.86456849]
[1762441701367,6.86456849,158.26,158.21,6.86456849]
[1762441701662,28.97867729,158.27,158.22,6.86456849]
[1762441701838,6.86456849,158.24,158.18,6.86456849]
[1762441702169,22.1141088,158.27,158.23,6.86456849]
[1762441702465,22.1141088,158.27,158.25,6.86456849]
[1762441702765,22.11131466,158.29,158.26,6.86456849]
[1762441703636,7.56456849,158.28,158.2,0.67]
[1762441703850,6.86456849,158.25,158.2,6.86456849]
[1762441704176,0.7,158.24,158.17,0.67]
[1762441704360,7.56456849,158.24,158.18,6.86456849]
[1762441704678,22.12109719,158.22,158.17,7.53456849]
[1762441704852,22.12109719,158.22,158.18,6.86456849]
[1762441705052,6.32031348,158.22,158.19,6.86456849]
[1762441705263,22.12109719,158.22,158.19,6.86456849]
[1762441705573,6.32031348,158.22,158.2,6.86456849]
[1762441705949,16.49684788,158.26,158.21,7.53456849]
[1762441706152,7.01751847,158.29,158.24,6.86456849]
[1762441706470,6.86456849,158.27,158.22,6.86456849]
[1762441706767,6.31797731,158.28,158.24,6.86456849]
[1762441706974,6.31797731,158.28,158.26,6.86456849]
[1762441707157,6.31797731,158.28,158.24,0.67]
[1762441707346,6.31797731,158.28,158.24,6.86456849]
[1762441707546,22.11277134,158.28,158.25,6.86456849]
[1762441707747,28.97733983,158.28,158.21,0.14216157]
[1762441707966,6.86456849,158.26,158.19,0.67]
[1762441708165,6.86456849,158.26,158.21,6.86456849]
[1762441708371,7.56456849,158.26,158.21,6.86456849]
[1762441708571,22.11277134,158.28,158.23,6.86456849]
[1762441708779,22.11277134,158.28,158.24,6.86456849]
[1762441708981,7.56456849,158.27,158.21,6.86456849]
[1762441709478,29.352,158.3,158.24,6.86456849]
[1762441709664,7.56456849,158.29,158.24,6.86456849]
[1762441709983,22.81134524,158.29,158.21,6.86456849]
[1762441710276,22.81134524,158.29,158.24,6.86456849]
[1762441710653,0.7,158.28,158.24,6.86456849]
[1762441710994,22.1141088,158.27,158.22,6.86456849]
[1762441711278,6.86456849,158.25,158.19,6.86456849]
[1762441711466,42.7061088,158.27,158.18,6.86456849]
[1762441711467,6.86456849,158.23,158.18,6.86456849]
[1762441711660,6.86456849,158.22,158.17,6.86456849]
[1762441711860,6.86456849,158.21,158.16,6.86456849]
[1762441712072,6.86456849,158.23,158.18,6.86456849]
[1762441712275,27.45656849,158.24,158.18,6.86456849]
[1762441712579,0.7,158.23,158.18,6.86456849]
[1762441712778,20.592,158.26,158.21,6.86456849]
[1762441712981,6.86456849,158.24,158.16,10.60098926]
[1762441713161,6.86456849,158.24,158.18,6.86456849]
[1762441713363,22.81690362,158.25,158.18,6.86456849]
[1762441713566,6.86456849,158.24,158.19,6.86456849]
[1762441713970,0.7,158.23,158.18,6.86456849]
[1762441714183,6.86456849,158.21,158.14,0.67]
[1762441714389,6.86456849,158.22,158.16,6.86456849]
[1762441714770,0.7,158.23,158.19,6.86456849]
[1762441715173,22.12109719,158.22,158.18,6.86456849]
[1762441715385,6.32031348,158.22,158.2,6.86456849]
[1762441715757,6.32031348,158.22,158.19,6.86456849]
[1762441715963,7.56456849,158.21,158.15,6.86456849]
[1762441716264,6.86456849,158.2,158.15,6.86456849]
[1762441716467,7.56456849,158.21,158.15,6.86456849]
[1762441716667,6.86456849,158.18,158.12,5.26]
[1762441716864,6.86456849,158.16,158.09,0.7]
[1762441717069,6.86456849,158.16,158.11,6.86456849]
[1762441717070,6.32311097,158.15,158.11,6.86456849]
[1762441717289,0.7,158.14,158.09,6.86456849]
[1762441717468,6.86456849,158.13,158.04,8.66]
[1762441717793,6.86456849,158.13,157.99,2.51631476]
[1762441717794,6.86456849,158.08,157.99,1.21631477]
[1762441717981,6.86456849,158.07,158.01,6.86456849]
[1762441718186,6.86456849,158.06,158.0,6.86456849]
[1762441718497,22.08258883,158.11,158.0,6.86456849]
[1762441718498,4.37851877,158.09,158.03,4.37851877]
[1762441718676,21.292,158.11,158.06,4.37851877]
[1762441718677,20.592,158.11,158.06,4.37851877]
[1762441719067,20.592,158.11,158.07,0.7]
[1762441719268,0.79003918,158.22,158.09,20.592]
[1762441719467,7.96,158.25,158.11,0.14216157]
[1762441719698,4.37851877,158.18,158.12,0.31565469]
[1762441719860,4.37851877,158.18,158.12,4.37851877]
[1762441720065,0.7,158.17,158.12,4.37851877]
[1762441720368,0.7,158.17,158.1,0.14216157]
[1762441720673,4.37851877,158.16,158.11,4.37851877]
[1762441720862,5.07851877,158.17,158.11,4.37851877]
[1762441721185,7.02271308,158.16,158.12,4.37851877]
[1762441721388,0.7,158.21,158.12,0.14216157]
[1762441721593,25.67051877,158.21,158.15,4.37851877]
[1762441721901,4.37851877,158.18,158.08,20.90779466]
[1762441722190,4.37851877,158.16,158.1,4.37851877]
[1762441722390,20.592,158.17,158.13,4.37851877]
[1762441722567,0.7,158.19,158.15,4.37851877]
[1762441722917,0.7,158.19,158.16,4.37851877]
[1762441723402,7.02153749,158.19,158.17,4.37851877]
[1762441723576,7.02106439,158.21,158.18,4.37851877]
[1762441723769,6.31991404,158.23,158.18,4.37851877]
[1762441723972,22.11969916,158.23,158.19,4.37851877]
[1762441724181,0.7,158.22,158.19,4.37851877]
[1762441724371,0.7,158.22,158.18,4.37851877]
[1762441724575,0.7,158.22,158.17,4.37851877]
[1762441724980,4.37851877,158.19,158.09,0.31549479]
[1762441725168,4.37851877,158.17,158.11,4.37851877]
[1762441725366,22.12389379,158.2,158.13,4.37851877]
[1762441725574,0.7,158.19,158.15,4.37851877]
[1762441725776,0.7,158.19,158.16,4.37851877]
[1762441725974,0.7,158.23,158.18,4.37851877]
[1762441726177,20.592,158.22,158.18,4.37851877]
[1762441726590,0.7,158.22,158.18,4.37851877]
[1762441726800,6.31974961,158.24,158.21,4.37851877]
[1762441726999,7.01974961,158.24,158.21,4.37851877]
[1762441727900,7.01974961,158.24,158.16,30.38082769]
[1762441727901,0.7,158.23,158.16,30.69600279]
[1762441728083,0.7,158.23,158.18,4.37851877]
[1762441728281,5.07851877,158.23,158.18,4.37851877]
[1762441728495,4.37851877,158.22,158.16,4.37851877]
[1762441728699,0.7,158.22,158.18,4.37851877]
[1762441729397,6.32071297,158.21,158.19,4.37851877]
[1762441729583,0.7,158.22,158.19,4.37851877]
[1762441729916,6.31951466,158.24,158.2,4.37851877]
[1762441730074,0.7,158.24,158.2,4.37851877]
[1762441730279,0.7,158.23,158.2,4.37851877]
[1762441730475,0.7,158.28,158.22,4.37851877]
[1762441730802,4.47851877,158.3,158.27,4.37851877]
[1762441730803,6.41715598,158.3,158.27,4.37851877]
[1762441731002,0.8,158.3,158.28,4.37851877]
[1762441731184,7.11715447,158.3,158.28,4.37851877]
[1762441731391,7.11715447,158.3,158.27,4.37851877]
[1762441731585,22.90995295,158.3,158.26,4.37851877]
[1762441731924,0.7,158.29,158.25,4.37851877]
[1762441732077,0.7,158.29,158.22,20.90687565]
[1762441732278,4.37851877,158.28,158.22,4.37851877]
[1762441732587,4.37851877,158.27,158.22,4.37851877]
[1762441732912,4.37851877,158.24,158.14,14.57847984]
[1762441733083,5.06851877,158.23,158.18,4.37851877]
[1762441733282,26.49961596,158.22,158.17,4.37851877]
[1762441733588,0.69,158.21,158.17,4.37851877]
[1762441734106,0.69,158.21,158.14,12.31851877]
[1762441734322,4.37851877,158.2,158.14,4.37851877]
[1762441734687,0.69,158.19,158.15,4.37851877]
[1762441734887,6.32005623,158.23,158.18,4.37851877]
[1762441735095,6.32005623,158.23,158.19,4.37851877]
[1762441735389,0.69,158.22,158.14,20.73416157]
[1762441735614,5.06851877,158.22,158.17,4.37851877]
[1762441736018,0.69,158.21,158.17,4.37851877]
[1762441736220,15.79978512,158.23,158.14,27.05766331]
[1762441736221,0.69,158.22,158.18,4.37851877]
[1762441736516,0.69,158.22,158.16,0.14216157]
[1762441736811,0.69,158.22,158.15,10.10438241]
[1762441737204,6.32071297,158.21,158.17,4.37851877]
[1762441737603,0.69,158.21,158.18,4.37851877]
[1762441738122,0.69,158.21,158.17,4.37851877]
[1762441738627,6.32032069,158.22,158.18,4.37851877]
[1762441738789,0.69,158.21,158.16,0.14216157]
[1762441739310,52.1879289,158.25,158.16,0.14216157]
[1762441739311,0.69,158.25,158.2,4.37851877]
[1762441739494,0.69,158.25,158.21,4.37851877]
[1762441739994,0.69,158.28,158.23,4.37851877]
[1762441740197,4.37851877,158.25,158.19,20.592]
[1762441740407,0.69,158.27,158.23,4.37851877]
[1762441740708,4.37851877,158.24,158.16,8.08216157]
[1762441740909,4.37851877,158.2,158.14,4.37851877]
[1762441741219,4.37851877,158.21,158.15,24.97051877]
[1762441741401,22.12389379,158.2,158.15,24.97051877]
[1762441741722,27.19241256,158.2,158.15,20.592]
[1762441741926,0.69,158.19,158.14,4.37851877]
[1762441742303,4.37851877,158.16,158.1,0.31591449]
[1762441742502,4.37851877,158.16,157.99,0.2]
[1762441742503,4.37851877,158.15,158.09,4.37851877]
[1762441742711,4.37851877,158.13,158.07,4.37851877]
[1762441742946,21.282,158.18,158.08,4.37851877]
[1762441742947,20.592,158.16,158.08,4.37851877]
[1762441743245,4.37851877,158.14,158.08,4.37851877]
[1762441743431,4.37851877,158.12,158.07,4.37851877]
[1762441743933,0.69,158.11,158.07,4.37851877]
[1762441744137,0.69,158.11,158.08,4.37851877]
[1762441744632,4.37851877,158.2,158.11,9.78882769]
[1762441744820,22.81529236,158.19,158.15,4.37851877]
[1762441745014,4.37851877,158.18,158.12,4.37851877]
[1762441745233,4.37851877,158.13,158.07,20.592]
[1762441745540,6.32431065,158.12,158.08,4.37851877]
[1762441745731,20.592,158.16,158.08,4.37851877]
[1762441745732,7.01275316,158.16,158.11,4.37851877]
[1762441745922,0.69,158.15,158.11,4.37851877]
[1762441746231,0.69,158.15,158.1,4.37851877]
[1762441746439,0.69,158.18,158.13,4.37851877]
[1762441746616,0.69,158.17,158.13,4.37851877]
[1762441746811,0.69,158.17,158.09,0.31591462]
[1762441747136,0.69,158.2,158.13,20.592]
[1762441747348,0.69,158.23,158.19,4.37851877]
[1762441747644,4.37851877,158.25,158.19,4.37851877]
[1762441747839,0.69,158.24,158.19,4.37851877]
[1762441748312,0.69,158.24,158.14,9.78882769]
[1762441748313,4.37851877,158.23,158.14,9.78882769]
[1762441748639,4.37851877,158.23,158.17,24.97051877]
[1762441748824,0.69,158.22,158.17,24.97051877]
[1762441749239,0.69,158.22,158.18,4.37851877]
[1762441749443,6.32071297,158.21,158.18,4.37851877]
[1762441749821,0.69,158.22,158.19,4.37851877]
[1762441750030,7.01035794,158.22,158.19,4.37851877]
[1762441750221,20.592,158.26,158.21,4.37851877]
[1762441750423,0.69,158.26,158.23,4.37851877]
[1762441750832,7.00751847,158.29,158.25,4.37851877]
[1762441751149,0.69,158.29,158.27,4.37851877]
[1762441751350,0.69,158.29,158.25,4.37851877]
[1762441751527,4.37851877,158.26,158.2,24.97051877]
[1762441751722,5.06851877,158.25,158.2,20.592]
[1762441751923,0.69,158.25,158.2,24.97051877]
[1762441752133,0.69,158.24,158.2,4.37851877]
[1762441752332,0.69,158.24,158.19,4.37851877]
[1762441752533,5.06851877,158.24,158.18,20.592]
[1762441752758,4.37851877,158.23,158.17,4.37851877]
[1762441753052,0.69,158.23,158.17,4.37851877]
[1762441753257,0.69,158.23,158.18,4.37851877]
[1762441753551,6.32031348,158.22,158.17,4.37851877]
[1762441753850,0.69,158.22,158.16,0.14216157]
[1762441754151,0.69,158.22,158.18,4.37851877]
[1762441754557,0.69,158.25,158.2,4.37851877]
[1762441755253,0.69,158.25,158.21,4.37851877]
[1762441755477,22.11830131,158.24,158.2,4.37851877]
[1762441755634,22.11830131,158.24,158.18,4.37851877]
[1762441755835,0.69,158.23,158.19,4.37851877]
[1762441756155,0.69,158.23,158.2,4.37851877]
[1762441756656,22.11830131,158.24,158.19,4.37851877]
[1762441756844,0.69,158.22,158.19,4.37851877]
[1762441757156,0.69,158.22,158.2,4.37851877]
[1762441757359,0.69,158.22,158.16,10.2464239]
[1762441757540,0.69,158.22,158.19,4.37851877]
[1762441757541,6.32040035,158.22,158.19,4.37851877]
[1762441757940,6.31951486,158.24,158.19,24.97051877]
[1762441758134,0.69,158.23,158.18,4.37851877]
[1762441758475,0.7897397,158.28,158.21,4.37851877]
[1762441758659,22.1116551,158.29,158.24,4.37851877]
[1762441758837,6.31751847,158.29,158.25,4.37851877]
[1762441759039,4.37851877,158.27,158.18,20.592]
[1762441759257,5.06851877,158.28,158.22,4.37851877]
[1762441759570,22.11550612,158.26,158.21,4.37851877]
[1762441760063,0.69,158.25,158.2,4.37851877]
[1762441760372,4.37851877,158.23,158.17,4.37851877]
[1762441760967,0.69,158.22,158.17,4.37851877]
[1762441761167,0.69,158.22,158.15,28.532]
[1762441761368,0.69,158.22,158.15,12.31851877]
[1762441761369,5.06851877,158.22,158.15,12.31851877]
[1762441761566,22.12249541,158.21,158.15,12.31851877]
[1762441761875,7.01071297,158.21,158.17,4.37851877]
[1762441762368,6.32071297,158.21,158.15,28.532]
[1762441762559,6.32071297,158.21,158.15,34.85508012]
[1762441762758,6.99013815,158.23,158.19,4.37851877]
[1762441762959,22.11992327,158.23,158.19,4.37851877]
[1762441763156,0.67,158.22,158.18,4.37851877]
[1762441763478,0.67,158.22,158.16,9.93098926]
[1762441763666,6.32071297,158.21,158.18,4.37851877]
[1762441764069,0.67,158.23,158.19,4.37851877]
[1762441764468,5.04851877,158.23,158.16,4.37851877]
[1762441764777,0.67,158.23,158.17,4.37851877]
[1762441764975,0.67,158.22,158.17,4.37851877]
[1762441765184,0.67,158.22,158.16,4.37851877]
[1762441765473,0.67,158.22,158.18,4.37851877]
[1762441765687,6.99036749,158.22,158.19,4.37851877]
[1762441765875,0.67,158.26,158.21,4.37851877]
[1762441766068,0.67,158.33,158.25,4.37851877]
[1762441766269,0.67,158.35,158.29,4.37851877]
[1762441766800,0.67,158.35,158.29,34.90150803]
[1762441767010,6.98548322,158.35,158.29,34.90150803]
[1762441767219,0.1,158.38,158.29,34.90150803]
[1762441767507,0.1,158.38,158.33,20.592]
[1762441767690,22.86877475,158.38,158.33,4.37851877]
[1762441767894,22.86877475,158.38,158.29,7.94]
[1762441768203,5.04851877,158.37,158.29,7.94]
[1762441768367,5.04851877,158.37,158.3,4.37851877]
[1762441768572,25.64051877,158.36,158.29,7.94]
[1762441768786,25.64051877,158.36,158.29,12.31851877]
[1762441768999,0.67,158.35,158.29,12.31851877]
[1762441769701,26.48285121,158.34,158.29,7.94]
[1762441769876,0.67,158.33,158.29,7.94]
[1762441770276,5.04851877,158.33,158.26,4.37851877]
[1762441770493,0.67,158.32,158.26,4.37851877]
[1762441770794,5.04851877,158.32,158.25,24.97051877]
[1762441771099,5.04851877,158.32,158.26,4.37851877]
[1762441771299,0.67,158.31,158.26,4.37851877]
[1762441771484,0.67,158.31,158.27,4.37851877]
[1762441771677,22.10991787,158.3,158.27,4.37851877]
[1762441772111,22.10991787,158.3,158.26,4.37851877]
[1762441772287,0.67,158.29,158.25,4.37851877]
[1762441772484,0.67,158.29,158.26,4.37851877]
[1762441772683,6.31711939,158.3,158.26,4.37851877]
[1762441772894,0.67,158.33,158.28,4.37851877]
[1762441773398,0.67,158.33,158.27,4.37851877]
[1762441773577,6.31632137,158.32,158.28,4.37851877]
[1762441773993,20.592,158.35,158.29,4.37851877]
[1762441774274,6.31489581,158.36,158.33,4.37851877]
[1762441774479,6.31489581,158.36,158.34,4.37851877]
[1762441774876,6.98489581,158.36,158.34,4.37851877]
[1762441775282,6.31440838,158.37,158.35,4.37851877]
[1762441775600,6.41394682,158.38,158.36,4.37851877]
[1762441775785,6.41394682,158.38,158.35,4.37851877]
[1762441775980,0.67,158.37,158.33,24.97051877]
[1762441776198,0.67,158.37,158.3,7.92]
[1762441776394,0.67,158.37,158.31,4.37851877]
[1762441776794,5.04851877,158.37,158.31,4.37851877]
[1762441777207,4.37851877,158.35,158.3,7.92]
[1762441777512,4.37851877,158.33,158.26,4.37851877]
[1762441777722,26.48285121,158.34,158.27,4.37851877]
[1762441778084,0.71,158.33,158.28,4.37851877]
[1762441778313,0.71,158.33,158.29,4.37851877]
[1762441778517,0.71,158.33,158.28,4.37851877]
[1762441779811,22.1071248,158.32,158.28,4.37851877]
[1762441780022,6.31632137,158.32,158.29,4.37851877]
[1762441780215,20.592,158.36,158.3,4.37851877]
[1762441780418,0.71,158.35,158.31,6.857028]
[1762441780813,0.71,158.35,158.27,30.38082769]
[1762441781016,0.71,158.35,158.3,6.857028]
[1762441781217,0.71,158.35,158.29,6.857028]
[1762441781727,22.10433244,158.34,158.27,30.38082769]
[1762441781900,22.10433244,158.34,158.3,6.857028]
[1762441782108,22.81433244,158.34,158.29,6.857028]
[1762441782531,0.71,158.33,158.27,30.38082769]
[1762441782715,0.71,158.33,158.28,6.857028]
[1762441782914,0.71,158.33,158.29,6.857028]
[1762441783135,0.71,158.33,158.27,30.38082769]
[1762441783337,0.71,158.33,158.29,6.857028]
[1762441783632,0.71,158.33,158.3,6.857028]
[1762441783802,0.71,158.33,158.27,30.38082769]
[1762441783803,6.31632137,158.32,158.29,6.857028]
[1762441784612,7.02632137,158.32,158.29,6.857028]
[1762441785040,6.31632137,158.32,158.3,6.857028]
[1762441785913,22.8151033,158.34,158.29,6.857028]
[1762441786309,0.71,158.33,158.27,6.857028]
[1762441786508,0.71,158.33,158.28,6.857028]
[1762441787224,0.71,158.33,158.27,6.857028]
[1762441787428,7.02593093,158.33,158.28,6.857028]
[1762441787830,0.71,158.32,158.28,6.857028]
[1762441788217,0.71,158.32,158.27,6.857028]
[1762441788425,6.857028,158.31,158.24,6.857028]
[1762441788734,6.857028,158.31,158.24,27.449028]
[1762441788958,0.71,158.3,158.24,27.449028]
[1762441789109,0.71,158.3,158.24,20.592]
[1762441789318,22.11131466,158.29,158.24,20.592]
[1762441789609,22.11131466,158.29,158.25,6.857028]
[1762441789923,0.71,158.28,158.25,6.857028]
[1762441790238,0.71,158.28,158.22,6.857028]
[1762441790439,6.857028,158.27,158.21,6.857028]
[1762441790933,0.71,158.26,158.18,9.93098926]
[1762441791134,0.71,158.26,158.21,6.857028]
[1762441791309,0.71,158.26,158.22,6.857028]
[1762441791310,6.31911532,158.25,158.22,6.857028]
[1762441791726,6.31911532,158.25,158.2,6.857028]